[Event "Open Nuevo Centro. Jornada 1"]
[Site "Chess.com"]
[Date "2020.06.19"]
[Round "9"]
[White "Movsisyan, Tigran"]
[Black "Amor�s P�rez, Manuel David"]
[Result "1/2-1/2"]
[WhiteElo "1873"]
[BlackElo "1664"]
[TimeControl "180+2"]
[EndTime "12:13:16 PDT"]
[Termination "Tablas por repetición de movimientos"]

1. d4 {[%clk 0:03:01.9]} 1... e6 {[%clk 0:02:59.6]} 2. c4 {[%clk 0:03:03.1]}
2... d5 {[%clk 0:02:58.2]} 3. cxd5 {[%clk 0:03:05]} 3... exd5 {[%clk 0:02:59]}
4. Nc3 {[%clk 0:03:06.9]} 4... Nf6 {[%clk 0:02:59.8]} 5. Bg5 {[%clk 0:03:06.3]}
5... Be7 {[%clk 0:03:00.7]} 6. e3 {[%clk 0:03:05.7]} 6... h6 {[%clk 0:03:02.1]}
7. Bxf6 {[%clk 0:03:06.4]} 7... Bxf6 {[%clk 0:03:02.9]} 8. Bd3 {[%clk
0:03:08.3]} 8... O-O {[%clk 0:03:02.9]} 9. Nge2 {[%clk 0:03:09.8]} 9... Nc6
{[%clk 0:02:59.7]} 10. Qc2 {[%clk 0:03:11.1]} 10... Nb4 {[%clk 0:02:56.5]} 11.
Qb1 {[%clk 0:03:11.7]} 11... Nxd3+ {[%clk 0:02:57.5]} 12. Qxd3 {[%clk
0:03:13.6]} 12... Be6 {[%clk 0:02:57.1]} 13. O-O {[%clk 0:03:15.1]} 13... a6
{[%clk 0:02:58.2]} 14. f3 {[%clk 0:03:16.2]} 14... c5 {[%clk 0:02:58.4]} 15.
dxc5 {[%clk 0:03:16.7]} 15... Bxc3 {[%clk 0:02:54.6]} 16. Nxc3 {[%clk
0:03:16.4]} 16... Rc8 {[%clk 0:02:54.1]} 17. b4 {[%clk 0:03:16.5]} 17... Qf6
{[%clk 0:02:53.3]} 18. Qd4 {[%clk 0:03:15.9]} 18... Qg6 {[%clk 0:02:51.4]} 19.
Nxd5 {[%clk 0:03:14.5]} 19... Bxd5 {[%clk 0:02:52.3]} 20. Qxd5 {[%clk
0:03:15.1]} 20... Rfd8 {[%clk 0:02:51.8]} 21. Qxb7 {[%clk 0:03:11.5]} 21... Rb8
{[%clk 0:02:52.8]} 22. Qe4 {[%clk 0:03:07.4]} 22... Qxe4 {[%clk 0:02:50.9]} 23.
fxe4 {[%clk 0:03:09.3]} 23... Rxb4 {[%clk 0:02:52.2]} 24. c6 {[%clk 0:03:09.5]}
24... Rxe4 {[%clk 0:02:52.6]} 25. Rfd1 {[%clk 0:03:08.6]} 25... Rc8 {[%clk
0:02:52.9]} 26. Rac1 {[%clk 0:03:07.1]} 26... Re6 {[%clk 0:02:53.4]} 27. c7
{[%clk 0:03:07.8]} 27... Ree8 {[%clk 0:02:41.9]} 28. Rd6 {[%clk 0:03:04.1]}
28... Kh7 {[%clk 0:02:40.5]} 29. Rxa6 {[%clk 0:03:04.5]} 29... Rxe3 {[%clk
0:02:40.4]} 30. Rd6 {[%clk 0:03:04.1]} 30... Ree8 {[%clk 0:02:41.2]} 31. Rd7
{[%clk 0:03:05.1]} 31... f6 {[%clk 0:02:41.5]} 32. a4 {[%clk 0:03:05.8]} 32...
Ra8 {[%clk 0:02:34]} 33. a5 {[%clk 0:03:06.6]} 33... Rec8 {[%clk 0:02:26.9]} 34.
Re1 {[%clk 0:02:54.7]} 34... Rxa5 {[%clk 0:02:23.7]} 35. Ree7 {[%clk 0:02:55.7]}
35... Kg6 {[%clk 0:02:17.4]} 36. Rxg7+ {[%clk 0:02:55.3]} 36... Kf5 {[%clk
0:02:18.6]} 37. Rd8 {[%clk 0:02:56.1]} 37... Raa8 {[%clk 0:02:18]} 38. Rgg8
{[%clk 0:02:55.4]} 38... Ra1+ {[%clk 0:02:16]} 39. Kf2 {[%clk 0:02:53.8]} 39...
Rxc7 {[%clk 0:02:17.4]} 40. g4+ {[%clk 0:02:53.9]} 40... Kf4 {[%clk 0:02:13.6]}
41. Rd4+ {[%clk 0:02:52.9]} 41... Ke5 {[%clk 0:02:14.4]} 42. Rgd8 {[%clk
0:02:53.9]} 42... Ra2+ {[%clk 0:02:13]} 43. Kg3 {[%clk 0:02:54.9]} 43... Rc3+
{[%clk 0:02:12.2]} 44. Rd3 {[%clk 0:02:53.7]} 44... Rxd3+ {[%clk 0:02:13.3]} 45.
Rxd3 {[%clk 0:02:55.6]} 45... Ke6 {[%clk 0:02:14.3]} 46. Re3+ {[%clk 0:02:56.5]}
46... Kf7 {[%clk 0:02:15.5]} 47. h3 {[%clk 0:02:57.7]} 47... Kg6 {[%clk
0:02:13.5]} 48. Rb3 {[%clk 0:02:57.9]} 48... Rd2 {[%clk 0:02:13.4]} 49. Kh4
{[%clk 0:02:56.1]} 49... Rd4 {[%clk 0:02:13.2]} 50. Rb6 {[%clk 0:02:57.2]} 50...
Re4 {[%clk 0:02:14.3]} 51. Kg3 {[%clk 0:02:57.7]} 51... Rc4 {[%clk 0:02:15.4]}
52. Ra6 {[%clk 0:02:57]} 52... Rc3+ {[%clk 0:02:16.1]} 53. Kh4 {[%clk
0:02:58.5]} 53... Rc4 {[%clk 0:02:17.2]} 54. Kg3 {[%clk 0:02:59.5]} 54... Rc3+
{[%clk 0:02:17.8]} 55. Kh4 {[%clk 0:03:01.1]} 55... Rc4 {[%clk 0:02:19.4]} 56.
Rb6 {[%clk 0:03:01.4]} 56... Rd4 {[%clk 0:02:19.2]} 57. Rb3 {[%clk 0:03:02.6]}
57... h5 {[%clk 0:02:16.1]} 58. Kg3 {[%clk 0:02:59.5]} 58... hxg4 {[%clk
0:02:16.3]} 59. hxg4 {[%clk 0:03:01.4]} 59... Rc4 {[%clk 0:02:15.8]} 60. Kh4
{[%clk 0:02:59.6]} 60... Rd4 {[%clk 0:02:17.1]} 61. Kg3 {[%clk 0:02:59.1]} 61...
Rc4 {[%clk 0:02:16.6]} 62. Rf3 {[%clk 0:02:59.6]} 62... Rd4 {[%clk 0:02:17.2]}
63. Rf4 {[%clk 0:03:01.5]} 63... Rd3+ {[%clk 0:02:17.3]} 64. Kh4 {[%clk
0:03:02.9]} 64... Rd2 {[%clk 0:02:13.2]} 65. Ra4 {[%clk 0:03:02.9]} 65... Rh2+
{[%clk 0:02:12.9]} 66. Kg3 {[%clk 0:03:04.2]} 66... Rc2 {[%clk 0:02:13.8]} 67.
Kf4 {[%clk 0:03:06.1]} 67... Rc5 {[%clk 0:02:13.7]} 68. Rd4 {[%clk 0:03:05.3]}
68... Rb5 {[%clk 0:02:13.8]} 69. Kg3 {[%clk 0:03:05.7]} 69... Rb3+ {[%clk
0:02:14.8]} 70. Kh4 {[%clk 0:03:06.9]} 70... Rb5 {[%clk 0:02:15.5]} 71. Rd6
{[%clk 0:03:07.9]} 71... Rb4 {[%clk 0:02:15.2]} 72. Ra6 {[%clk 0:03:06.7]} 72...
Rc4 {[%clk 0:02:16.3]} 73. Rd6 {[%clk 0:03:07.7]} 73... Rb4 {[%clk 0:02:17.4]}
74. Rd5 {[%clk 0:03:08.7]} 74... Rc4 {[%clk 0:02:18]} 75. Kg3 {[%clk 0:03:09.4]}
75... Rc3+ {[%clk 0:02:18.9]} 76. Kf4 {[%clk 0:03:09.5]} 76... Rc4+ {[%clk
0:02:20.4]} 77. Kf3 {[%clk 0:03:10.4]} 77... Rc3+ {[%clk 0:02:21.5]} 78. Kf4
{[%clk 0:03:11.2]} 78... Rc4+ {[%clk 0:02:22.9]} 79. Kg3 {[%clk 0:03:13.1]}
79... Rc3+ {[%clk 0:02:24.1]} 80. Kh4 {[%clk 0:03:15]} 80... Rc4 {[%clk
0:02:25.3]} 81. Rf5 {[%clk 0:03:16.6]} 81... Rd4 {[%clk 0:02:25.4]} 82. Kg3
{[%clk 0:03:17]} 82... Rd3+ {[%clk 0:02:26.7]} 83. Rf3 {[%clk 0:03:18.1]} 83...
Rd4 {[%clk 0:02:28.2]} 84. Rf4 {[%clk 0:03:19.2]} 84... Rd3+ {[%clk 0:02:29.5]}
85. Kh4 {[%clk 0:03:20.1]} 85... Rc3 {[%clk 0:02:29.5]} 86. Ra4 {[%clk
0:03:16.2]} 86... Rd3 {[%clk 0:02:29]} 87. Re4 {[%clk 0:03:09.8]} 87... Rc3
{[%clk 0:02:29.6]} 88. Rf4 {[%clk 0:03:10.2]} 88... Rd3 {[%clk 0:02:30.1]} 89.
Rf2 {[%clk 0:03:05.3]} 89... Rd4 {[%clk 0:02:30]} 90. Rf3 {[%clk 0:03:06.2]}
90... Rc4 {[%clk 0:02:31]} 91. Kg3 {[%clk 0:03:07.5]} 91... Rd4 {[%clk 0:02:32]}
1/2-1

[Event "Open Nuevo Centro. Jornada 1"]
[Site "Chess.com"]
[Date "2020.06.19"]
[Round "9"]
[White "Martinez Villena, David"]
[Black "R�os Valle, Daniel "]
[Result "1-0"]
[WhiteElo "1712"]
[BlackElo "1221"]
[TimeControl "180+2"]
[EndTime "12:13:17 PDT"]
[Termination "Victoria de DavidMVAlaquas por jaque mate"]

1. e4 {[%clk 0:03:01.9]} 1... c5 {[%clk 0:02:59.8]} 2. Nf3 {[%clk 0:03:02]} 2...
Nc6 {[%clk 0:02:59.5]} 3. d4 {[%clk 0:03:02.2]} 3... cxd4 {[%clk 0:03:00]} 4.
Nxd4 {[%clk 0:03:03.2]} 4... Nf6 {[%clk 0:03:01.5]} 5. Nc3 {[%clk 0:03:03.4]}
5... d6 {[%clk 0:03:02.2]} 6. Be2 {[%clk 0:03:02.3]} 6... e6 {[%clk 0:02:58.4]}
7. O-O {[%clk 0:03:01.8]} 7... Be7 {[%clk 0:02:59.2]} 8. Kh1 {[%clk 0:02:58.4]}
8... Bd7 {[%clk 0:02:56]} 9. f4 {[%clk 0:02:58.6]} 9... O-O {[%clk 0:02:53.8]}
10. f5 {[%clk 0:02:52.5]} 10... e5 {[%clk 0:02:52.8]} 11. Nf3 {[%clk 0:02:49.4]}
11... Qb6 {[%clk 0:02:37.7]} 12. Bd3 {[%clk 0:02:25.6]} 12... Rad8 {[%clk
0:02:33.2]} 13. Qe2 {[%clk 0:02:22.2]} 13... Qc7 {[%clk 0:02:28.7]} 14. Bg5
{[%clk 0:02:20]} 14... Nb4 {[%clk 0:02:28.1]} 15. Bxf6 {[%clk 0:02:18.2]} 15...
Bxf6 {[%clk 0:02:25.9]} 16. a3 {[%clk 0:02:15.6]} 16... Nxd3 {[%clk 0:02:26.2]}
17. cxd3 {[%clk 0:02:16.7]} 17... Bc6 {[%clk 0:02:26.5]} 18. Rac1 {[%clk
0:02:15.9]} 18... Qe7 {[%clk 0:02:21.5]} 19. Qe3 {[%clk 0:01:40.2]} 19... a6
{[%clk 0:02:11.1]} 20. Rc2 {[%clk 0:01:36]} 20... g6 {[%clk 0:02:00.2]} 21. fxg6
{[%clk 0:01:26.8]} 21... fxg6 {[%clk 0:01:59.9]} 22. Rcf2 {[%clk 0:01:26]} 22...
Bg7 {[%clk 0:01:58]} 23. b4 {[%clk 0:01:23]} 23... Rc8 {[%clk 0:01:51.1]} 24.
Qd2 {[%clk 0:01:17.5]} 24... Qe6 {[%clk 0:01:32.8]} 25. Ng5 {[%clk 0:01:15.2]}
25... Rxf2 {[%clk 0:01:19.1]} 26. Rxf2 {[%clk 0:01:14.7]} 26... Qg4 {[%clk
0:01:02.4]} 27. h3 {[%clk 0:01:11.6]} 27... Qg3 {[%clk 0:00:53.8]} 28. Ne6
{[%clk 0:01:01.1]} 28... Bh6 {[%clk 0:00:23.8]} 29. Qxh6 {[%clk 0:00:56.4]}
29... Qxf2 {[%clk 0:00:12.6]} 30. Qg7# {[%clk 0:00:57.1]} 1

[Event "Open Nuevo Centro. Jornada 1"]
[Site "Chess.com"]
[Date "2020.06.19"]
[Round "9"]
[White "Blanco Solaz, Ram�n"]
[Black "Aymerich Rosell, Pablo"]
[Result "0-1"]
[WhiteElo "1956"]
[BlackElo "2008"]
[TimeControl "180+2"]
[EndTime "12:13:25 PDT"]
[Termination "Victoria de jasikevic por abandono"]

1. g3 {[%clk 0:03:01.9]} 1... Nf6 {[%clk 0:02:54.8]} 2. c4 {[%clk 0:03:03.1]}
2... g6 {[%clk 0:02:55]} 3. Nc3 {[%clk 0:03:03.7]} 3... Bg7 {[%clk 0:02:55]} 4.
e4 {[%clk 0:03:05]} 4... d6 {[%clk 0:02:51.9]} 5. Nge2 {[%clk 0:03:06.4]} 5...
O-O {[%clk 0:02:52.1]} 6. Bg2 {[%clk 0:03:07.7]} 6... c5 {[%clk 0:02:52.8]} 7.
O-O {[%clk 0:03:08.8]} 7... Nc6 {[%clk 0:02:54.4]} 8. d3 {[%clk 0:03:10]} 8...
Rb8 {[%clk 0:02:55.5]} 9. h3 {[%clk 0:03:10.5]} 9... a6 {[%clk 0:02:56.5]} 10.
a4 {[%clk 0:03:04.9]} 10... Nd4 {[%clk 0:02:54.6]} 11. Be3 {[%clk 0:02:57.1]}
11... Nd7 {[%clk 0:02:53.7]} 12. f4 {[%clk 0:02:41.3]} 12... e6 {[%clk
0:02:49.5]} 13. Kh2 {[%clk 0:02:36.5]} 13... b6 {[%clk 0:02:49.5]} 14. g4 {[%clk
0:02:32]} 14... f5 {[%clk 0:02:38.6]} 15. gxf5 {[%clk 0:02:27.7]} 15... gxf5
{[%clk 0:02:35]} 16. Rg1 {[%clk 0:02:25.9]} 16... Kh8 {[%clk 0:02:33.6]} 17. Ng3
{[%clk 0:02:26.8]} 17... Qh4 {[%clk 0:02:27.8]} 18. Nh5 {[%clk 0:02:22.1]} 18...
Bh6 {[%clk 0:02:10.3]} 19. Bxd4+ {[%clk 0:02:15.6]} 19... cxd4 {[%clk
0:02:07.9]} 20. Ne2 {[%clk 0:02:16.9]} 20... Qxh5 {[%clk 0:02:00.5]} 21. exf5
{[%clk 0:02:15.2]} 21... exf5 {[%clk 0:01:24]} 22. Qf1 {[%clk 0:02:11.4]} 22...
Bg7 {[%clk 0:01:11.4]} 23. Bf3 {[%clk 0:02:07]} 23... Qh6 {[%clk 0:01:08.1]} 24.
Rg5 {[%clk 0:02:03.4]} 24... Nc5 {[%clk 0:00:53.3]} 25. Ng3 {[%clk 0:02:03.4]}
25... Bf6 {[%clk 0:00:40.1]} 26. Rh5 {[%clk 0:02:04.3]} 26... Qxf4 {[%clk
0:00:38.8]} 27. Qe2 {[%clk 0:01:51.1]} 27... Rg8 {[%clk 0:00:36]} 28. Rg1 {[%clk
0:01:52.7]} 28... Be5 {[%clk 0:00:31.6]} 29. Qg2 {[%clk 0:01:41.9]} 29... Rxg3
{[%clk 0:00:26.9]} 30. Qxg3 {[%clk 0:01:42.9]} 30... Qxg3+ {[%clk 0:00:27.2]}
31. Rxg3 {[%clk 0:01:44.8]} 31... Nxd3 {[%clk 0:00:16]} 32. Rh6 {[%clk
0:01:44.7]} 32... Bb7 {[%clk 0:00:14.7]} 33. Kg2 {[%clk 0:01:45]} 33... Bxg3
{[%clk 0:00:14.2]} 34. Kxg3 {[%clk 0:01:46.3]} 34... Bxf3 {[%clk 0:00:15.3]} 35.
Kxf3 {[%clk 0:01:47.5]} 35... Ne5+ {[%clk 0:00:16.5]} 36. Kf4 {[%clk 0:01:48.9]}
36... d3 {[%clk 0:00:17]} 37. Ke3 {[%clk 0:01:49.6]} 37... Rd8 {[%clk
0:00:16.7]} 38. Re6 {[%clk 0:01:46.9]} 38... f4+ {[%clk 0:00:15.4]} 39. Kxf4
{[%clk 0:01:42.6]} 39... d2 {[%clk 0:00:15.2]} 0

[Event "Open Nuevo Centro. Jornada 1"]
[Site "Chess.com"]
[Date "2020.06.19"]
[Round "9"]
[White "Donate Moreno, David"]
[Black "Crevillen Abad, Clemente"]
[Result "0-1"]
[WhiteElo "1505"]
[BlackElo "1757"]
[TimeControl "180+2"]
[EndTime "12:13:28 PDT"]
[Termination "Victoria de Clementovich por jaque mate"]

1. e4 {[%clk 0:03:01.9]} 1... c5 {[%clk 0:03:00.4]} 2. Nf3 {[%clk 0:03:02.7]}
2... Nc6 {[%clk 0:03:01]} 3. d4 {[%clk 0:03:03.7]} 3... cxd4 {[%clk 0:03:02]} 4.
Nxd4 {[%clk 0:03:04.8]} 4... Nf6 {[%clk 0:03:03.6]} 5. Nc3 {[%clk 0:03:03]} 5...
e5 {[%clk 0:03:03.8]} 6. Nb3 {[%clk 0:03:02]} 6... Bb4 {[%clk 0:02:58.7]} 7. Bd3
{[%clk 0:03:01.8]} 7... h6 {[%clk 0:02:53.5]} 8. Bd2 {[%clk 0:03:00.7]} 8... O-O
{[%clk 0:02:53]} 9. a3 {[%clk 0:03:00.8]} 9... Be7 {[%clk 0:02:48.7]} 10. O-O
{[%clk 0:02:58.8]} 10... d5 {[%clk 0:02:46.6]} 11. exd5 {[%clk 0:02:58.7]} 11...
Nxd5 {[%clk 0:02:47]} 12. Nxd5 {[%clk 0:02:58]} 12... Qxd5 {[%clk 0:02:47.4]}
13. Bxh6 {[%clk 0:02:58.2]} 13... gxh6 {[%clk 0:02:28.6]} 14. Bh7+ {[%clk
0:02:57.8]} 14... Kxh7 {[%clk 0:02:29.1]} 15. Qxd5 {[%clk 0:02:58.7]} 15... Be6
{[%clk 0:02:28.9]} 16. Qd3+ {[%clk 0:02:57.7]} 16... f5 {[%clk 0:02:25.7]} 17.
Rfe1 {[%clk 0:02:55.1]} 17... Rad8 {[%clk 0:02:19.7]} 18. Qf1 {[%clk 0:02:55.4]}
18... Bf6 {[%clk 0:02:15.5]} 19. Rad1 {[%clk 0:02:53.3]} 19... Bxb3 {[%clk
0:02:08.6]} 20. cxb3 {[%clk 0:02:52.8]} 20... Nd4 {[%clk 0:02:08.9]} 21. Qc4
{[%clk 0:02:45]} 21... Rd7 {[%clk 0:01:49.3]} 22. h3 {[%clk 0:02:34.4]} 22...
Rfd8 {[%clk 0:01:45.9]} 23. Qf1 {[%clk 0:02:22.9]} 23... Kg6 {[%clk 0:01:41.2]}
24. g4 {[%clk 0:02:15]} 24... Nf3+ {[%clk 0:01:36.4]} 25. Kh1 {[%clk 0:02:10.4]}
25... Nxe1 {[%clk 0:01:36.9]} 26. Rxd7 {[%clk 0:02:10.5]} 26... Rxd7 {[%clk
0:01:36.3]} 27. Qxe1 {[%clk 0:01:59.8]} 27... e4 {[%clk 0:01:15.8]} 28. gxf5+
{[%clk 0:01:58]} 28... Kxf5 {[%clk 0:01:16.4]} 29. Qe2 {[%clk 0:01:56.3]} 29...
Rd3 {[%clk 0:01:15.8]} 30. Qg4+ {[%clk 0:01:52.8]} 30... Ke5 {[%clk 0:01:14.4]}
31. Qh5+ {[%clk 0:01:53]} 31... Bg5 {[%clk 0:01:13.8]} 32. Qe8+ {[%clk
0:01:52.4]} 32... Kf5 {[%clk 0:01:05.7]} 33. Qc8+ {[%clk 0:01:47.9]} 33... Ke5
{[%clk 0:01:05.4]} 34. Qc7+ {[%clk 0:01:48.1]} 34... Kf5 {[%clk 0:01:04.9]} 35.
Qc5+ {[%clk 0:01:35.6]} 35... Kf4 {[%clk 0:01:00.6]} 36. Qc1+ {[%clk 0:01:22]}
36... Kf3 {[%clk 0:00:58.5]} 37. Qg1 {[%clk 0:01:14.6]} 37... Ke2 {[%clk
0:00:45.8]} 38. Qg4+ {[%clk 0:01:02.5]} 38... Kxf2 {[%clk 0:00:46.2]} 39. Qxe4
{[%clk 0:00:58.6]} 39... Rxh3# {[%clk 0:00:46.4]} 0

[Event "Open Nuevo Centro. Jornada 1"]
[Site "Chess.com"]
[Date "2020.06.19"]
[Round "9"]
[White "Lloret Ramis, Juan Jos�"]
[Black "Gil Lopez, Alejandro"]
[Result "0-1"]
[WhiteElo "1975"]
[BlackElo "2047"]
[TimeControl "180+2"]
[EndTime "12:14:04 PDT"]
[Termination "Victoria de AglVal0313 por tiempo"]

1. c4 {[%clk 0:03:01.9]} 1... c5 {[%clk 0:02:59.6]} 2. Nc3 {[%clk 0:03:03.3]}
2... g6 {[%clk 0:03:00.1]} 3. Nf3 {[%clk 0:03:03.9]} 3... Bg7 {[%clk 0:03:01.6]}
4. g3 {[%clk 0:03:05.4]} 4... Nc6 {[%clk 0:03:02.6]} 5. Bg2 {[%clk 0:03:06.7]}
5... e6 {[%clk 0:03:04.3]} 6. O-O {[%clk 0:03:07.2]} 6... Nge7 {[%clk
0:03:05.5]} 7. d4 {[%clk 0:03:04.8]} 7... Nxd4 {[%clk 0:03:01.7]} 8. Nxd4 {[%clk
0:03:04.7]} 8... Bxd4 {[%clk 0:03:02.4]} 9. Nb5 {[%clk 0:03:05.6]} 9... Nc6
{[%clk 0:02:57.9]} 10. Nd6+ {[%clk 0:02:45.8]} 10... Ke7 {[%clk 0:02:22.8]} 11.
e3 {[%clk 0:02:10.7]} 11... Bg7 {[%clk 0:02:08]} 12. e4 {[%clk 0:01:42.8]} 12...
Nd4 {[%clk 0:02:04]} 13. e5 {[%clk 0:01:37.3]} 13... Bxe5 {[%clk 0:02:02.4]} 14.
Ne4 {[%clk 0:01:09.2]} 14... Qc7 {[%clk 0:02:01.7]} 15. Bh6 {[%clk 0:01:02]}
15... f5 {[%clk 0:01:54.2]} 16. f4 {[%clk 0:00:49.3]} 16... Bf6 {[%clk
0:01:53.6]} 17. Nxf6 {[%clk 0:00:31.8]} 17... Kxf6 {[%clk 0:01:55.5]} 18. b4
{[%clk 0:00:26]} 18... d6 {[%clk 0:01:55.2]} 19. Qd3 {[%clk 0:00:22.5]} 19...
Bd7 {[%clk 0:01:51.2]} 20. Rfe1 {[%clk 0:00:23]} 20... Bc6 {[%clk 0:01:47.3]}
21. b5 {[%clk 0:00:20.5]} 21... Bxg2 {[%clk 0:01:44.1]} 22. Kxg2 {[%clk
0:00:22]} 22... Rhe8 {[%clk 0:01:28.3]} 23. Re3 {[%clk 0:00:21]} 23... e5 {[%clk
0:01:23.6]} 24. fxe5+ {[%clk 0:00:15.6]} 24... dxe5 {[%clk 0:01:25.5]} 25. Rf1
{[%clk 0:00:09.3]} 25... Rad8 {[%clk 0:01:07.2]} 26. Ree1 {[%clk 0:00:08.6]}
26... Nxb5 {[%clk 0:01:01.4]} 27. Qe3 {[%clk 0:00:07.8]} 27... Nd4 {[%clk
0:00:59.9]} 28. Bg5+ {[%clk 0:00:06.5]} 28... Kg7 {[%clk 0:00:59.8]} 29. Bxd8
{[%clk 0:00:07.4]} 29... Qxd8 {[%clk 0:01:01.7]} 30. h4 {[%clk 0:00:06.8]} 30...
Nc2 {[%clk 0:00:59.6]} 31. Qxc5 {[%clk 0:00:05.6]} 31... Nxe1+ {[%clk
0:01:00.3]} 32. Rxe1 {[%clk 0:00:05.3]} 32... Qd2+ {[%clk 0:00:55.6]} 33. Kf1
{[%clk 0:00:06.4]} 33... e4 {[%clk 0:00:52.9]} 34. Qc7+ {[%clk 0:00:05.9]} 34...
Kh6 {[%clk 0:00:51.4]} 35. Qf7 {[%clk 0:00:05.5]} 35... e3 {[%clk 0:00:49.1]}
0

[Event "Open Nuevo Centro. Jornada 1"]
[Site "Chess.com"]
[Date "2020.06.19"]
[Round "9"]
[White "Fern�ndez Martin, Carlos"]
[Black "Hassomal Daswani, Birjkumar"]
[Result "0-1"]
[WhiteElo "1579"]
[BlackElo "1847"]
[TimeControl "180+2"]
[EndTime "12:14:14 PDT"]
[Termination "Victoria de daz000007 por abandono"]

1. e4 {[%clk 0:03:01.9]} 1... c5 {[%clk 0:02:59.1]} 2. Nc3 {[%clk 0:03:02.1]}
2... e6 {[%clk 0:02:59.5]} 3. d3 {[%clk 0:03:03]} 3... a6 {[%clk 0:03:00.1]} 4.
g3 {[%clk 0:03:03.8]} 4... Nc6 {[%clk 0:02:57.8]} 5. Bg2 {[%clk 0:03:04.3]} 5...
d6 {[%clk 0:02:59.1]} 6. f4 {[%clk 0:03:03.6]} 6... Nge7 {[%clk 0:03:00.3]} 7.
Nf3 {[%clk 0:03:03.8]} 7... Bd7 {[%clk 0:02:58.2]} 8. Be3 {[%clk 0:03:02]} 8...
Rc8 {[%clk 0:02:55.9]} 9. Qd2 {[%clk 0:03:01.9]} 9... b5 {[%clk 0:02:55.5]} 10.
O-O {[%clk 0:03:00.1]} 10... Qb6 {[%clk 0:02:52.1]} 11. a3 {[%clk 0:02:58.2]}
11... Nd4 {[%clk 0:02:52.1]} 12. b4 {[%clk 0:02:54.4]} 12... Nec6 {[%clk
0:02:48]} 13. bxc5 {[%clk 0:02:43.7]} 13... dxc5 {[%clk 0:02:46.9]} 14. Ne2
{[%clk 0:02:40.9]} 14... Nxe2+ {[%clk 0:02:42.1]} 15. Qxe2 {[%clk 0:02:41]}
15... Be7 {[%clk 0:02:41.4]} 16. f5 {[%clk 0:02:30.9]} 16... O-O {[%clk
0:02:33.4]} 17. g4 {[%clk 0:02:26.3]} 17... Bf6 {[%clk 0:02:32.5]} 18. g5 {[%clk
0:02:26.3]} 18... Bxa1 {[%clk 0:02:29.9]} 19. Rxa1 {[%clk 0:02:25.9]} 19... exf5
{[%clk 0:02:28.7]} 20. exf5 {[%clk 0:02:26.3]} 20... Bxf5 {[%clk 0:02:27.6]} 21.
Nh4 {[%clk 0:02:25.7]} 21... Bg6 {[%clk 0:02:20.1]} 22. Nf3 {[%clk 0:02:18]}
22... Rfe8 {[%clk 0:02:20.2]} 23. Qf2 {[%clk 0:02:18.2]} 23... Ne5 {[%clk
0:02:13.3]} 24. h4 {[%clk 0:02:16.8]} 24... Ng4 {[%clk 0:02:12.6]} 25. Qg3
{[%clk 0:02:03.6]} 25... Nxe3 {[%clk 0:02:03.9]} 26. Bh3 {[%clk 0:02:04.1]}
26... Qc7 {[%clk 0:01:58]} 27. Qf2 {[%clk 0:01:57.4]} 27... Bf5 {[%clk
0:01:48.3]} 28. Bxf5 {[%clk 0:01:53.2]} 28... Nxf5 {[%clk 0:01:47.4]} 29. h5
{[%clk 0:01:52.8]} 29... Qf4 {[%clk 0:01:38.4]} 30. g6 {[%clk 0:01:52.1]} 30...
hxg6 {[%clk 0:01:36.6]} 31. hxg6 {[%clk 0:01:52.9]} 31... Qe3 {[%clk 0:01:36.7]}
32. gxf7+ {[%clk 0:01:52.5]} 32... Kxf7 {[%clk 0:01:35.9]} 33. Qxe3 {[%clk
0:01:39.9]} 33... Rxe3 {[%clk 0:01:33.8]} 34. Ng5+ {[%clk 0:01:39.1]} 34... Kf6
{[%clk 0:01:34.5]} 35. Ne4+ {[%clk 0:01:40.2]} 35... Ke5 {[%clk 0:01:34.5]} 36.
Rf1 {[%clk 0:01:35.8]} 36... g6 {[%clk 0:01:33.4]} 37. Kg2 {[%clk 0:01:35.2]}
37... Rd8 {[%clk 0:01:29]} 38. Nxc5 {[%clk 0:01:32.8]} 38... Re2+ {[%clk
0:01:29.5]} 39. Kh3 {[%clk 0:01:32.4]} 39... Rxc2 {[%clk 0:01:28.2]} 40. Re1+
{[%clk 0:01:28.4]} 40... Kd5 {[%clk 0:01:26.4]} 41. Nxa6 {[%clk 0:01:26.2]}
41... Rh8+ {[%clk 0:01:24.2]} 42. Kg4 {[%clk 0:01:23]} 42... Rg2+ {[%clk
0:01:23.8]} 43. Kf4 {[%clk 0:01:24]} 43... Rh4+ {[%clk 0:01:22.4]} 44. Kf3
{[%clk 0:01:24.8]} 44... Rg3+ {[%clk 0:01:23.1]} 45. Kf2 {[%clk 0:01:21.1]}
45... Rh2+ {[%clk 0:01:22.8]} 46. Kf1 {[%clk 0:01:20.8]} 46... Ne3+ {[%clk
0:01:23.1]} 47. Rxe3 {[%clk 0:01:11.2]} 47... Rxe3 {[%clk 0:01:23.4]} 48. Nb4+
{[%clk 0:01:11.8]} 48... Kd6 {[%clk 0:01:22.9]} 49. Kg1 {[%clk 0:01:12.5]} 49...
Ree2 {[%clk 0:01:20.5]} 0

[Event "Open Nuevo Centro. Jornada 1"]
[Site "Chess.com"]
[Date "2020.06.19"]
[Round "9"]
[White "Borissov, Juli�n"]
[Black "Roca Cruz, Rafael"]
[Result "1-0"]
[WhiteElo "1851"]
[BlackElo "1679"]
[TimeControl "180+2"]
[EndTime "12:14:17 PDT"]
[Termination "Victoria de julianborisov por tiempo"]

1. e4 {[%clk 0:03:01.9]} 1... c5 {[%clk 0:03:00.1]} 2. Nf3 {[%clk 0:03:01.4]}
2... e6 {[%clk 0:03:01.1]} 3. d4 {[%clk 0:03:00.8]} 3... cxd4 {[%clk 0:03:02.2]}
4. Nxd4 {[%clk 0:03:01.5]} 4... Nf6 {[%clk 0:03:01.2]} 5. Nc3 {[%clk 0:03:00.4]}
5... Bb4 {[%clk 0:03:02.1]} 6. Qf3 {[%clk 0:02:41.5]} 6... d5 {[%clk 0:02:35.3]}
7. e5 {[%clk 0:02:28.2]} 7... Nfd7 {[%clk 0:02:33.2]} 8. Qg3 {[%clk 0:02:25.6]}
8... Qc7 {[%clk 0:01:59.1]} 9. f4 {[%clk 0:02:15.5]} 9... O-O {[%clk 0:01:49.4]}
10. Bd2 {[%clk 0:02:02.6]} 10... Nc6 {[%clk 0:01:23]} 11. Nxc6 {[%clk
0:01:45.4]} 11... Qxc6 {[%clk 0:00:37.9]} 12. Bb5 {[%clk 0:01:19.2]} 12... Qb6
{[%clk 0:00:26.6]} 13. Bd3 {[%clk 0:00:56]} 13... Nc5 {[%clk 0:00:26.8]} 14. a3
{[%clk 0:00:52.6]} 14... Nxd3+ {[%clk 0:00:19]} 15. Qxd3 {[%clk 0:00:51.3]}
15... Bc5 {[%clk 0:00:17.9]} 16. Na4 {[%clk 0:00:46.5]} 16... Qc6 {[%clk
0:00:19.1]} 17. Nxc5 {[%clk 0:00:46.2]} 17... Qxc5 {[%clk 0:00:20.2]} 18. Bb4
{[%clk 0:00:47.1]} 18... Qb6 {[%clk 0:00:13.4]} 19. Bxf8 {[%clk 0:00:46.2]}
19... Kxf8 {[%clk 0:00:14.1]} 20. b3 {[%clk 0:00:40.7]} 20... Bd7 {[%clk
0:00:12.2]} 21. Qxh7 {[%clk 0:00:38.8]} 21... Qe3+ {[%clk 0:00:11]} 22. Kd1
{[%clk 0:00:37.1]} 22... Qd4+ {[%clk 0:00:10.9]} 23. Ke2 {[%clk 0:00:33.9]}
23... Bb5+ {[%clk 0:00:10.6]} 24. Kf3 {[%clk 0:00:23.4]} 24... Ke7 {[%clk
0:00:03.6]} 25. Rhe1 {[%clk 0:00:15.4]} 25... Rc8 {[%clk 0:00:02.8]} 26. c4
{[%clk 0:00:13.2]} 1